fUSD/lending_fUSD_20260112
["ID","MTS","AMOUNT","RATE_DAILY","PERIOD"]
[401476836,1768255840312,-152.0,0.0001504,2]
[401476838,1768255840322,-151.0,0.0001504,2]
[401476840,1768255840334,-151.0,0.0001504,2]
[401476842,1768255840344,-151.0,0.0001504,2]
[401476844,1768255840353,-151.0,0.0001504,2]
[401476846,1768255840362,-151.0,0.0001504,2]
[401476848,1768255840371,-151.0,0.0001504,2]
[401476850,1768255840380,-151.0,0.0001504,2]
[401476852,1768255840389,-209.63270184,0.0001511,2]
[401476854,1768255840398,-1000.0,0.00015116,2]
[401476856,1768255840409,-1104.26040629,0.00015118,5]
[401476858,1768255840418,-170.46857895,0.00015118,2]
[401476860,1768255840428,-500.0,0.00015118,2]
[401476862,1768255840437,-500.0,0.00015118,2]
[401476864,1768255840446,-10188.61640951,0.00015118,2]
[401476866,1768255840457,-2941.05537897,0.00015118,2]
[401476868,1768255840466,-526.37134529,0.00015218,2]
[401476870,1768255840475,-500.0,0.00015218,2]
[401476872,1768255840484,-500.0,0.00015218,2]
[401476874,1768255840494,-575.35243908,0.00015218,2]
[401476876,1768255840503,-500.0,0.00015218,2]
[401476878,1768255840512,-500.0,0.00015218,2]
[401476880,1768255840521,-500.0,0.00015218,2]
[401476882,1768255840530,-500.0,0.00015218,2]
[401476884,1768255840539,-6889.28,0.0001531,2]
[401476885,1768255840548,-1534.87,0.0001531,2]
[401476887,1768255840556,-4517.32,0.0001531,2]
[401476889,1768255840566,-337.9530488,0.00015345,2]
[401476891,1768255840575,-163.58,0.00015417,2]
[401476893,1768255840584,-10188.61640951,0.00015427,2]
[401476895,1768255840593,-2941.05537889,0.00015427,2]
[401476898,1768255840602,-182.09,0.00015529,2]
[401476899,1768255840611,-170.46857894,0.00015582,2]
[401476901,1768255840621,-1680.0,0.00015602,2]
[401476904,1768255840631,-200.0,0.00015635,2]
[401476905,1768255840640,-150.0,0.00015718,2]
[401476908,1768255840649,-150.0,0.00015718,2]
[401476910,1768255840659,-150.0,0.00015718,2]
[401476911,1768255840668,-150.0,0.00015718,2]
[401476913,1768255840677,-150.0,0.00015718,2]
[401476915,1768255840687,-150.0,0.00015718,2]
[401476917,1768255840697,-150.0,0.00015718,2]
[401476919,1768255840706,-10188.61640951,0.00015736,2]
[401476922,1768255840716,-2941.05537889,0.00015736,2]
[401476923,1768255840726,-337.9530488,0.00015771,2]
[401476925,1768255840736,-150.0,0.00015773,2]
[401476928,1768255840746,-150.0,0.00015773,2]
[401476930,1768255840755,-150.0,0.00015773,2]
[401476931,1768255840764,-150.0,0.00015773,2]
[401476934,1768255840774,-150.0,0.00015773,2]
[401476936,1768255840784,-150.0,0.00015773,2]
[401476938,1768255840793,-158.11,0.00015804,2]
[401476939,1768255840801,-200.0,0.00015828,2]
[401476941,1768255840811,-200.0,0.00015828,2]
[401476943,1768255840820,-150.0,0.00015828,2]
[401476946,1768255840829,-200.0,0.00015828,2]
[401476948,1768255840839,-200.0,0.00015828,2]
[401476950,1768255840848,-200.0,0.00015828,2]
[401476951,1768255840857,-150.0,0.00015882,2]
[401476954,1768255840866,-255.0,0.00015937,2]
[401476955,1768255840875,-219.0,0.00015937,2]
[401476958,1768255840885,-500.0,0.0001596,2]
[401476960,1768255840894,-500.0,0.00016015,2]
[401476962,1768255840903,-170.46857894,0.00016045,2]
[401476963,1768255840912,-10188.61640951,0.00016045,2]
[401476991,1768255840921,-2941.05537889,0.00016045,2]
[401476992,1768255841210,-500.0,0.0001607,2]
[401476993,1768255841219,-661.95,0.00016082,2]
[401476994,1768255841228,-661.95,0.00016082,2]
[401476995,1768255841237,-661.7,0.00016082,2]
[401476996,1768255841246,-500.0,0.00016124,2]
[401476997,1768255841254,-500.0,0.00016179,2]
[401476999,1768255841263,-500.0,0.00016192,2]
[401477001,1768255841273,-337.9530488,0.00016197,2]
[401477003,1768255841282,-150.0,0.000162,2]
[401477005,1768255841291,-150.0,0.000162,2]
[401477007,1768255841300,-150.0,0.000162,2]
[401477009,1768255841309,-150.0,0.000162,2]
[401477011,1768255841319,-150.0,0.000162,2]
[401477013,1768255841329,-150.0,0.000162,2]
[401477015,1768255841339,-150.0,0.000162,2]
[401477017,1768255841348,-150.0,0.000162,2]
[401477018,1768255841357,-150.0,0.000162,2]
[401477021,1768255841367,-150.0,0.000162,2]
[401477023,1768255841377,-150.0,0.000162,2]
[401477024,1768255841387,-150.0,0.000162,2]
[401477026,1768255841396,-150.0,0.000162,2]
[401477029,1768255841406,-150.0,0.000162,2]
[401477031,1768255841415,-150.0,0.000162,2]
[401477032,1768255841427,-150.0,0.000162,2]
[401477034,1768255841436,-150.0,0.00016231,2]
[401477036,1768255841445,-500.0,0.00016234,2]
[401477038,1768255841455,-150.0,0.00016235,2]
[401477040,1768255841464,-150.0,0.00016236,2]
[401477042,1768255841473,-150.0,0.00016238,2]
[401477044,1768255841482,-500.0,0.00016239,2]
[401477046,1768255841491,-661.95,0.00016241,2]
[401477048,1768255841500,-150.0,0.00016244,2]
[401477050,1768255841509,-150.0,0.0001625,2]
[401477052,1768255841518,-150.0,0.00016251,2]
[401477054,1768255841527,-150.0,0.00016262,2]
[401477056,1768255841536,-150.0,0.00016271,2]
[401477058,1768255841545,-150.0,0.00016272,2]
[401477060,1768255841554,-150.0,0.00016277,2]
[401477062,1768255841563,-150.0,0.00016288,2]
[401477065,1768255841573,-500.0,0.00016289,2]
[401477066,1768255841582,-150.0,0.00016293,2]
[401477068,1768255841591,-150.0,0.000163,2]
[401477071,1768255841601,-150.0,0.00016303,2]
[401477073,1768255841611,-182.09,0.00016305,2]
[401477075,1768255841620,-150.0,0.00016306,2]
[401477076,1768255841629,-150.0,0.00016308,2]
[401477078,1768255841639,-150.0,0.00016315,2]
[401477080,1768255841649,-150.0,0.0001632,2]
[401477082,1768255841659,-150.0,0.00016324,2]
[401477084,1768255841668,-150.0,0.00016332,2]
[401477086,1768255841677,-150.0,0.00016341,2]
[401477089,1768255841686,-328.92481471,0.00016344,2]
[401477091,1768255841696,-150.0,0.00016344,2]
[401477093,1768255841705,-150.0,0.0001635,2]
[401477095,1768255841714,-150.0,0.0001635,2]
[401477096,1768255841723,-150.0,0.00016353,2]
[401477099,1768255841733,-150.0,0.00016354,2]
[401477100,1768255841742,-10188.61640951,0.00016354,2]
[401477102,1768255841752,-2941.05537889,0.00016354,2]
[401477105,1768255841761,-150.0,0.00016355,2]
[401477107,1768255841771,-150.0,0.00016376,2]
[401477108,1768255841780,-150.0,0.00016376,2]
[401477110,1768255841789,-150.0,0.0001638,2]
[401477112,1768255841799,-150.0,0.00016386,2]
[401477114,1768255841808,-150.0,0.00016391,2]
[401477117,1768255841817,-150.0,0.000164,2]
[401477119,1768255841826,-150.0,0.00016406,2]
[401477120,1768255841835,-209.06567652,0.00016407,2]
[401477122,1768255841845,-150.0,0.00016412,2]
[401477124,1768255841854,-150.0,0.00016416,2]
[401477127,1768255841864,-30000.0,0.00016417,2]
[401477129,1768255841874,-150.0,0.00016417,2]
[401477131,1768255841884,-150.0,0.0001642,2]
[401477133,1768255841894,-150.0,0.0001643,2]
[401477135,1768255841903,-500.0,0.00016438,2]
[401477137,1768255841913,-500.0,0.00016438,2]
[401477138,1768255841922,-500.0,0.00016438,2]
[401477140,1768255841931,-500.0,0.00016438,2]
[401477143,1768255841941,-210.2736974,0.00016438,2]
[401477144,1768255841950,-567.0,0.00016438,2]
[401477147,1768255841959,-151.0,0.00016438,2]
[401477148,1768255841969,-150.0,0.0001644,2]
[401477150,1768255841978,-150.0,0.00016447,2]
[401477153,1768255841987,-150.0,0.00016448,2]
[401477154,1768255841996,-166.66,0.00016448,2]
[401477156,1768255842006,-150.0,0.0001645,2]
[401477159,1768255842015,-150.0,0.00016452,2]
[401477161,1768255842024,-150.0,0.00016457,2]
[401477162,1768255842034,-150.0,0.00016457,2]
[401477164,1768255842044,-150.0,0.00016463,2]
[401477166,1768255842053,-1000.0,0.00016467,2]
[401477168,1768255842062,-150.0,0.00016468,2]
[401477170,1768255842071,-150.0,0.00016479,2]
[401477172,1768255842081,-150.0,0.00016482,2]
[401477174,1768255842090,-150.0,0.00016488,2]
[401477176,1768255842099,-150.0,0.000165,2]
[401477178,1768255842108,-150.0,0.000165,2]
[401477180,1768255842117,-150.0,0.00016506,2]
[401477182,1768255842126,-150.0,0.00016507,2]
[401477184,1768255842135,-150.0,0.00016509,2]
[401477186,1768255842145,-170.46857894,0.00016509,2]
[401477188,1768255842154,-150.0,0.0001651,2]
[401477190,1768255842163,-150.0,0.00016518,2]
[401477192,1768255842172,-150.0,0.00016524,2]
[401477194,1768255842181,-150.0,0.00016541,2]
[401477196,1768255842191,-150.0,0.00016545,2]
[401477198,1768255842200,-150.0,0.0001655,2]
[401477200,1768255842209,-150.0,0.00016551,2]
[401477202,1768255842219,-150.0,0.00016553,2]
[401477204,1768255842229,-150.0,0.0001656,2]
[401477206,1768255842238,-150.0,0.0001656,2]
[401477208,1768255842248,-150.0,0.0001656,2]
[401477210,1768255842257,-150.0,0.0001656,2]
[401477211,1768255842268,-151.52,0.00016566,2]
[401477213,1768255842278,-150.0,0.00016572,2]
[401477215,1768255842287,-150.0,0.00016583,2]
[401477217,1768255842297,-150.0,0.00016588,2]
[401477219,1768255842307,-150.0,0.00016595,2]
[401477221,1768255842316,-150.0,0.00016596,2]
[401477223,1768255842326,-160.15,0.00016599,2]
[401477225,1768255842340,-150.0,0.000166,2]
[401477227,1768255842350,-150.0,0.00016603,2]
[401477229,1768255842360,-1201.0,0.00016608,2]
[401477231,1768255842370,-914.0,0.00016608,2]
[401477233,1768255842380,-150.0,0.00016611,2]
[401477235,1768255842390,-150.0,0.00016621,2]
[401477237,1768255842399,-337.9530488,0.00016622,2]
[401477239,1768255842409,-150.0,0.00016624,2]
[401477241,1768255842418,-150.0,0.00016632,2]
[401477243,1768255842427,-150.0,0.00016634,2]
[401477245,1768255842437,-150.0,0.00016639,2]
[401477247,1768255842446,-150.0,0.0001665,2]
[401477249,1768255842455,-150.0,0.0001665,2]
[401477251,1768255842464,-150.0,0.00016659,2]
[401477253,1768255842473,-150.0,0.0001666,2]
[401477255,1768255842482,-150.0,0.00016663,2]
[401477257,1768255842491,-10188.61640951,0.00016664,2]
[401477259,1768255842500,-2941.05537889,0.00016664,2]
[401477261,1768255842509,-150.0,0.00016666,2]
[401477263,1768255842519,-150.0,0.00016668,2]
[401477265,1768255842528,-150.0,0.0001668,2]
[401477267,1768255842539,-150.0,0.00016683,2]
[401477269,1768255842549,-150.0,0.00016694,2]
[401477271,1768255842558,-150.0,0.00016697,2]
[401477273,1768255842568,-150.0,0.00016698,2]
[401477275,1768255842578,-150.0,0.000167,2]
[401477277,1768255842587,-150.0,0.00016704,2]
[401477279,1768255842597,-150.0,0.00016714,2]
[401477281,1768255842606,-150.0,0.00016714,2]
[401477283,1768255842617,-150.0,0.00016727,2]
[401477285,1768255842626,-150.0,0.00016728,2]
[401477287,1768255842636,-150.0,0.00016729,2]
[401477289,1768255842645,-150.0,0.00016736,2]
[401477291,1768255842655,-2437.0,0.00016738,2]
[401477293,1768255842664,-4821.0,0.00016738,2]
[401477295,1768255842673,-566.0,0.00016738,2]
[401477297,1768255842681,-150.0,0.0001674,2]
[401477299,1768255842692,-1000.0,0.00016748,2]
[401477301,1768255842701,-150.0,0.0001675,2]
[401477303,1768255842710,-150.0,0.00016759,2]
[401477306,1768255842719,-150.0,0.00016765,2]
[401477308,1768255842728,-150.0,0.00016766,2]
[401477311,1768255842737,-150.0,0.00016771,2]
[401477313,1768255842746,-150.0,0.00016774,2]
[401477316,1768255842756,-150.0,0.00016776,2]
[401477318,1768255842765,-163.58,0.00016787,2]
[401477321,1768255842773,-151.52,0.00016789,2]
[401477323,1768255842782,-150.0,0.0001679,2]
[401477325,1768255842791,-150.0,0.000168,2]
[401477327,1768255842800,-150.0,0.000168,2]
[401477329,1768255842809,-150.0,0.000168,2]
[401477331,1768255842819,-150.0,0.000168,2]
[401477333,1768255842828,-150.0,0.000168,2]
[401477335,1768255842837,-150.0,0.00016812,2]
[401477337,1768255842846,-150.0,0.00016813,2]
[401477339,1768255842856,-150.0,0.00016815,2]
[401477341,1768255842865,-150.0,0.00016817,2]
[401477343,1768255842874,-150.0,0.00016821,2]
[401477345,1768255842883,-160.15,0.00016823,2]
[401477347,1768255842893,-150.0,0.00016835,2]
[401477349,1768255842902,-150.0,0.00016848,2]
[401477351,1768255842911,-150.0,0.0001685,2]
[401477353,1768255842920,-150.0,0.00016851,2]
[401477355,1768255842929,-150.0,0.00016852,2]
[401477357,1768255842938,-158.11,0.00016858,2]
[401477359,1768255842948,-150.0,0.00016859,2]
[401477361,1768255842957,-150.0,0.00016869,2]
[401477363,1768255842966,-150.0,0.00016871,2]
[401477365,1768255842975,-150.0,0.00016883,2]
[401477367,1768255842984,-150.0,0.00016884,2]
[401477369,1768255842993,-179.28,0.00016885,2]
[401477371,1768255843002,-179.28,0.00016885,2]
[401477373,1768255843011,-179.28,0.00016885,2]
[401477375,1768255843020,-150.0,0.00016889,2]
[401477377,1768255843030,-171.53,0.000169,2]
[401477379,1768255843039,-171.53,0.000169,2]
[401477381,1768255843048,-358.56,0.000169,2]
[401477383,1768255843058,-179.28,0.000169,2]
[401477385,1768255843067,-179.28,0.000169,2]
[401477387,1768255843076,-150.0,0.000169,2]
[401477389,1768255843085,-150.0,0.00016902,2]
[401477391,1768255843095,-150.0,0.00016906,2]
[401477393,1768255843104,-150.0,0.00016914,2]
[401477395,1768255843113,-150.0,0.0001692,2]
[401477397,1768255843122,-150.0,0.0001692,2]
[401477399,1768255843131,-150.0,0.0001692,2]
[401477401,1768255843141,-150.0,0.0001692,2]
[401477403,1768255843150,-150.0,0.00016928,2]
[401477405,1768255843160,-1000.0,0.00016935,2]
[401477407,1768255843169,-150.0,0.00016941,2]
[401477409,1768255843179,-150.0,0.00016945,2]
[401477412,1768255843188,-150.0,0.00016946,2]
[401477413,1768255843198,-150.0,0.0001695,2]
[401477416,1768255843207,-150.0,0.0001695,2]
[401477418,1768255843216,-150.0,0.00016956,2]
[401477420,1768255843226,-150.0,0.00016966,2]
[401477422,1768255843235,-150.0,0.00016971,2]
[401477424,1768255843244,-150.0,0.00016971,2]
[401477425,1768255843253,-170.46857894,0.00016973,2]
[401477428,1768255843263,-10188.61640951,0.00016973,2]
[401477429,1768255843272,-2941.05537889,0.00016973,2]
[401477432,1768255843282,-150.0,0.00016976,2]
[401477434,1768255843292,-150.0,0.00016976,2]
[401477436,1768255843301,-200.0,0.00016983,2]
[401477438,1768255843310,-161639.2,0.00016986,2]
[401477440,1768255843319,-150.0,0.0001699,2]
[401477442,1768255843332,-166.66,0.00016991,2]
[401477444,1768255843341,-150.0,0.00016992,2]
[401477446,1768255843351,-150.0,0.00017,2]
[401477448,1768255843360,-250.0,0.00017,2]
[401477450,1768255843370,-225.13457576,0.00017,2]
[401477452,1768255843379,-500.0,0.00017004,2]
[401477454,1768255843389,-500.0,0.00017004,2]
[401477456,1768255843400,-500.0,0.00017004,2]
[401477458,1768255843409,-391.13971577,0.00017004,2]
[401477460,1768255843419,-150.0,0.00017004,2]
[401477462,1768255843429,-150.0,0.00017007,2]
[401477464,1768255843439,-150.0,0.00017012,2]
[401477466,1768255843450,-150.0,0.00017023,2]
[401477468,1768255843460,-150.0,0.00017028,2]
[401477470,1768255843470,-150.0,0.00017034,2]
[401477472,1768255843480,-150.0,0.00017038,2]
[401477474,1768255843490,-150.0,0.0001704,2]
[401477476,1768255843498,-150.0,0.00017043,2]
[401477478,1768255843508,-150.0,0.00017047,2]
[401477481,1768255843522,-150.0,0.0001705,2]
[401477483,1768255843531,-150.0,0.00017064,2]
[401477485,1768255843541,-252.52418132,0.00017065,2]
[401477488,1768255843550,-150.0,0.00017069,2]
[401477490,1768255843560,-500.0,0.00017072,2]
[401477492,1768255843569,-500.0,0.00017073,2]
[401477494,1768255843579,-173.30819609,0.00017073,2]
[401477496,1768255843588,-161.98929508,0.00017073,2]
[401477498,1768255843598,-169.86648744,0.00017073,2]
[401477500,1768255843607,-500.0,0.00017073,2]
[401477503,1768255843617,-224.8179227,0.00017073,2]
[401477505,1768255843626,-500.0,0.00017073,2]
[401477507,1768255843636,-167.63634062,0.00017073,2]
[401477509,1768255843646,-175.33645003,0.00017073,2]
[401477511,1768255843655,-500.0,0.00017073,2]
[401477513,1768255843664,-500.0,0.00017073,2]
[401477515,1768255843673,-500.0,0.00017073,2]
[401477517,1768255843682,-500.0,0.00017073,2]
[401477519,1768255843691,-500.0,0.00017073,2]
[401477521,1768255843700,-500.0,0.00017073,2]
[401477523,1768255843710,-500.0,0.00017073,2]
[401477525,1768255843719,-500.0,0.00017073,2]
[401477527,1768255843728,-500.0,0.00017073,2]
[401477529,1768255843738,-500.11872932,0.00017073,2]
[401477531,1768255843747,-500.0,0.00017073,2]
[401477533,1768255843756,-500.0,0.00017073,2]
[401477534,1768255843765,-500.0,0.00017073,2]
[401477535,1768255843775,-537.39654828,0.00017073,2]
[401477536,1768255843784,-164.2110081,0.00017073,2]
[401477537,1768255843793,-500.0,0.00017073,2]
[401477538,1768255843803,-500.0,0.00017073,2]
[401477539,1768255843812,-500.0,0.00017073,2]
[401477540,1768255843821,-500.0,0.00017073,2]
[401477541,1768255843830,-500.0,0.00017073,2]
[401477542,1768255843839,-500.32712274,0.00017073,2]
[401477543,1768255843849,-500.0,0.00017073,2]
[401477545,1768255843858,-500.0,0.00017073,2]
[401477548,1768255843867,-500.0,0.00017073,2]
[401477550,1768255843877,-500.0,0.00017073,2]
[401477552,1768255843886,-500.0,0.00017073,2]
[401477554,1768255843896,-500.0,0.00017073,2]
[401477556,1768255843906,-500.0,0.00017073,2]
[401477558,1768255843915,-500.0,0.00017073,2]
[401477560,1768255843925,-500.57959935,0.00017073,2]
[401477562,1768255843934,-500.0,0.00017073,2]
[401477564,1768255843943,-162.59101262,0.00017073,2]
[401477566,1768255843953,-163.4155148,0.00017073,2]
[401477568,1768255843962,-500.0,0.00017073,2]
[401477570,1768255843972,-486.88056707,0.00017073,2]
[401477572,1768255843981,-500.0,0.00017073,2]
[401477574,1768255843991,-501.85422751,0.00017073,2]
[401477576,1768255843999,-500.26791262,0.00017073,2]
[401477578,1768255844008,-503.00247421,0.00017073,2]
[401477580,1768255844018,-150.0,0.00017074,2]
[401477583,1768255844029,-150.0,0.00017078,2]
[401477585,1768255844039,-150.0,0.00017081,2]
[401477587,1768255844048,-1000.0,0.00017081,2]
[401477589,1768255844057,-182.09,0.00017082,2]
[401477591,1768255844067,-150.0,0.00017082,2]
[401477593,1768255844076,-160.15,0.00017087,2]
[401477595,1768255844086,-500.0,0.00017099,2]
[401477596,1768255844095,-533.88981491,0.00017099,2]
[401477598,1768255844104,-500.0,0.00017099,2]
[401477600,1768255844114,-500.0,0.00017099,2]
[401477602,1768255844124,-500.0,0.00017099,2]
[401477604,1768255844133,-500.0,0.00017099,2]
[401477606,1768255844142,-500.0,0.00017099,2]
[401477609,1768255844152,-500.0,0.00017099,2]
[401477611,1768255844162,-500.0,0.00017099,2]
[401477612,1768255844171,-500.0,0.00017099,2]
[401477615,1768255844181,-500.0,0.00017099,2]
[401477616,1768255844191,-500.0,0.00017099,2]
[401477618,1768255844200,-998.0,0.00017099,2]
[401477620,1768255844210,-500.0,0.00017099,2]
[401477622,1768255844220,-500.0,0.00017099,2]
[401477624,1768255844230,-620.0,0.00017099,2]
[401477627,1768255844240,-346.92554585,0.00017099,2]
[401477629,1768255844250,-150.0,0.000171,2]
[401477631,1768255844260,-150.0,0.000171,2]
[401477633,1768255844269,-150.0,0.000171,2]
[401477635,1768255844279,-150.0,0.000171,2]
[401477637,1768255844289,-150.0,0.000171,2]
[401477639,1768255844299,-150.0,0.00017118,2]
[401477641,1768255844308,-150.0,0.00017119,2]
[401477643,1768255844317,-150.0,0.00017122,2]
[401477645,1768255844332,-150.0,0.00017126,2]
[401477647,1768255844342,-160.15,0.00017126,2]
[401477649,1768255844352,-150.0,0.00017131,2]
[401477651,1768255844362,-150.0,0.00017136,2]
[401477653,1768255844373,-150.0,0.0001715,2]
[401477655,1768255844383,-433.0,0.00017151,2]
[401477657,1768255844392,-150.0,0.00017153,2]
[401477659,1768255844403,-150.0,0.00017157,2]
[401477661,1768255844412,-150.0,0.0001716,2]
[401477663,1768255844422,-150.0,0.00017162,2]
[401477665,1768255844432,-2351.0,0.00017163,2]
[401477667,1768255844442,-150.0,0.00017166,2]
[401477669,1768255844452,-150.0,0.00017172,2]
[401477671,1768255844461,-150.0,0.00017177,2]
[401477673,1768255844470,-150.0,0.00017178,2]
[401477675,1768255844480,-171.53,0.00017178,2]
[401477677,1768255844489,-301.93,0.00017178,2]
[401477679,1768255844498,-1787.38,0.00017178,2]
[401477681,1768255844508,-305.42,0.00017178,2]
[401477683,1768255844518,-150.0,0.00017178,2]
[401477685,1768255844527,-157.73,0.00017178,2]
[401477687,1768255844538,-171.53,0.00017178,2]
[401477689,1768255844548,-171.53,0.00017178,2]
[401477691,1768255844557,-150.0,0.00017178,2]
[401477693,1768255844567,-171.53,0.00017178,2]
[401477695,1768255844576,-150.0,0.00017178,2]
[401477697,1768255844586,-150.0,0.00017178,2]
[401477699,1768255844595,-171.53,0.00017178,2]
[401477701,1768255844604,-171.53,0.00017178,2]
[401477703,1768255844614,-150.0,0.00017178,2]
[401477705,1768255844624,-150.0,0.00017188,2]
[401477707,1768255844634,-150.0,0.00017193,2]
[401477709,1768255844644,-150.0,0.00017196,2]
[401477711,1768255844654,-150.0,0.000172,2]
[401477713,1768255844664,-150.0,0.00017208,2]
[401477715,1768255844674,-150.0,0.0001721,2]
[401477717,1768255844683,-150.0,0.00017224,2]
[401477719,1768255844692,-150.0,0.00017224,2]
[401477721,1768255844702,-150.0,0.00017229,2]
[401477723,1768255844711,-150.0,0.00017229,2]
[401477725,1768255844720,-150.0,0.00017234,2]
[401477727,1768255844729,-150.0,0.00017244,2]
[401477729,1768255844739,-150.0,0.0001725,2]
[401477731,1768255844748,-150.0,0.0001725,2]
[401477733,1768255844758,-150.0,0.00017254,2]
[401477735,1768255844768,-150.0,0.00017255,2]
[401477737,1768255844777,-150.0,0.00017259,2]
[401477739,1768255844787,-157.56760377,0.0001727,2]
[401477741,1768255844797,-150.0,0.00017271,2]
[401477743,1768255844806,-150.0,0.00017271,2]
[401477745,1768255844816,-150.0,0.00017271,2]
[401477747,1768255844825,-200.0,0.00017271,2]
[401477749,1768255844835,-171.0,0.00017271,2]
[401477751,1768255844844,-150.0,0.00017271,2]
[401477753,1768255844853,-150.0,0.00017271,2]
[401477755,1768255844863,-170.0,0.00017271,2]
[401477757,1768255844872,-150.0,0.00017271,2]
[401477759,1768255844881,-150.0,0.00017271,2]
[401477761,1768255844891,-150.0,0.00017271,2]
[401477764,1768255844900,-150.0,0.00017271,2]
[401477766,1768255844910,-150.0,0.00017271,2]
[401477768,1768255844920,-3469.0,0.00017271,2]
[401477770,1768255844929,-1330.0,0.00017271,2]
[401477772,1768255844938,-1405.0,0.00017271,2]
[401477774,1768255844947,-1267.0,0.00017271,2]
[401477776,1768255844956,-505.0,0.00017271,2]
[401477778,1768255844966,-150.0,0.00017272,2]
[401477779,1768255844976,-150.0,0.0001728,2]
[401477780,1768255844985,-150.0,0.0001728,2]
[401477781,1768255844995,-150.0,0.0001728,2]
[401477782,1768255845005,-150.0,0.0001728,2]
[401477783,1768255845014,-10188.61640951,0.00017282,2]
[401477784,1768255845024,-2941.05537889,0.00017282,2]
[401477785,1768255845034,-150.0,0.00017286,2]
[401477786,1768255845044,-150.0,0.00017294,2]
[401477787,1768255845053,-150.0,0.00017298,2]
[401477788,1768255845062,-150.0,0.000173,2]
[401477789,1768255845072,-150.0,0.00017311,2]
[401477790,1768255845082,-150.0,0.00017316,2]
[401477791,1768255845092,-150.0,0.00017317,2]
[401477792,1768255845102,-1000.0,0.00017328,2]
[401477793,1768255845111,-150.0,0.00017329,2]
[401477795,1768255845121,-150.0,0.00017331,2]
[401477796,1768255845131,-2431.5,0.00017334,2]
[401477797,1768255845140,-150.0,0.00017341,2]
[401477798,1768255845149,-1000.0,0.00017343,2]
[401477799,1768255845159,-150.0,0.00017348,2]
[401477800,1768255845418,-150.0,0.00017349,2]
[401477801,1768255845428,-150.0,0.0001735,2]
[401477803,1768255845438,-150.0,0.00017352,2]
[401477804,1768255845447,-150.0,0.00017365,2]
[401477807,1768255845457,-150.0,0.00017379,2]
[401477808,1768255845479,-150.0,0.00017383,2]
[401477811,1768255845491,-150.0,0.00017385,2]
[401477813,1768255845501,-150.0,0.00017387,2]
[401477815,1768255845510,-150.0,0.00017388,2]
[401477817,1768255845525,-150.0,0.000174,2]
[401477819,1768255845539,-150.0,0.000174,2]
[401477821,1768255845549,-150.0,0.000174,2]
[401477823,1768255845559,-150.0,0.000174,2]
[401477824,1768255845569,-150.0,0.000174,2]
[401477825,1768255845579,-150.0,0.0001741,2]
[401477826,1768255845589,-150.0,0.00017424,2]
[401477827,1768255845599,-150.0,0.00017426,2]